Cogmind - Beta 14 @@@ ROGUE MODE // 2025.03.14 @ 20:48:51 Player: Tibo Result: Destroyed by as-92209 with Assembled Blade Performance ------------- Evolutions (0) 0 Regions Visited (2) 400 Robots Destroyed (25) 125 Value Destroyed (607) 607 Prototype IDs (0) 0 Alien Tech Used (0) 0 Bonus (0) 0 TOTAL SCORE: 1132 Bonus ------- None Cogmind --------- Core Integrity 0/250 Matter 184/300 Energy 100/100 System Corruption 14% Temperature Hot (273) Movement Walking (260) Ox2 Location -10/Mines Parts ------- > --- POWER (1) -------- (None) > --- PROPULSION (2) --- Aluminum Leg > --- UTILITY (2) ------ Large Storage Unit Signal Interpreter > --- WEAPON (2) ------- Light Assault Rifle > --- INVENTORY (15) --- Improved Terrain Scanner Peak State ------------ > --- POWER ------------ Ion Engine > --- PROPULSION ------- Aluminum Leg Aluminum Leg > --- UTILITY ---------- Signal Interpreter Core Shielding > --- WEAPON ----------- Light Assault Rifle Slug Cannon > --- INVENTORY -------- Light Nuclear Core Large Storage Unit Improved Terrain Scanner Datajack Mining Laser [Rating: 10] Favorites ----------- Power Light Ion Engine Engine Light Ion Engine Power Core Light Nuclear Core Propulsion Aluminum Leg Leg Aluminum Leg Utility Improved Terrain Scanner Device Improved Terrain Scanner Storage Large Storage Unit Processor Signal Interpreter Protection Core Shielding Weapon Light Assault Rifle Energy Gun Small Laser Ballistic Gun Light Assault Rifle Ballistic Cannon Slug Cannon Launcher Grenade Launcher Special Weapon Mining Laser Special Melee Weapon Datajack Build | -11 -10 -10 ------- Run | Yrd Mat Min Slots Evolved . | . . . Power . | . . . Propulsion . | . . . Utility . | . . . Weapon . | . . . Parts Attached 31 | 7 15 9 Power 4 | 1 2 1 Engine 3 | 1 2 . Core 1 | . . 1 Reactor . | . . . Propulsion 8 | 3 5 . Treads . | . . . Leg 8 | 3 5 . Wheel . | . . . Hover . | . . . Flight . | . . . Utility 6 | 1 4 1 Device 3 | 1 2 . Storage 1 | . . 1 Processor 1 | . 1 . Hackware . | . . . Protection 1 | . 1 . Artifact . | . . . Weapon 13 | 2 4 7 Energy Gun 3 | 1 2 . Energy Cannon . | . . . Ballistic Gun 4 | 1 1 2 Ballistic Cannon 1 | . . 1 Launcher 3 | . 1 2 Special Weapon 1 | . . 1 Impact Weapon . | . . . Slashing Weapon . | . . . Piercing Weapon . | . . . Special Melee Weapon 1 | . . 1 Unidentified Prototypes . | . . . Parts Lost 10 | . 3 7 Power 4 | . 2 2 Propulsion 1 | . . 1 Utility 1 | . . 1 Weapon 4 | . 1 3 Highest Loss Streak 7 | . 2 7 To Critical Strikes . | . . . Average Slot Usage (%) 96 | . 95 98 Engine 12 | . 12 13 Leg 28 | . 28 28 Device 8 | . 11 . Processor 5 | . 2 14 Protection 11 | . 11 13 Energy Gun 6 | . 8 . Ballistic Gun 13 | . 13 12 Launcher 7 | . 5 12 Peak Build Rating 10 | 8 9 10 Average Rating 7 | 7 8 7 On Entrance 5 | . 8 7 Naked Turns . | . . . Heaviest Build 14 | 6 11 14 Greatest Support 20 | 20 20 20 Greatest Overweight (x) . | . . . Average Overweight (x) . | . . . Largest Inventory Capacity 15 | 5 5 15 Average Capacity 5 | 5 5 5 Most Carried 5 | 4 5 5 Average Carried 3 | 2 4 4 Final Capacity 15 | 5 5 15 Final Carried 5 | 3 5 1 Class Distribution -------------------- 95% | Mutant 4% | Scavenger-Mutant Dominant Class ---------------- Mutant | -10/Materials Mutant | -10/Mines Resources | -11 -10 -10 ----------- Run | Yrd Mat Min Matter Collected 578 | 292 239 47 Remotely . | . . . Salvage Created 791 | 145 632 14 Parts 36 | 10 23 3 Haulers Intercepted . | . . . Recyclers Shooed 5 | . 4 1 Parts Field Recycled . | . . . Retrieved Matter . | . . . Parts Self-Destructed . | . . . Prevented . | . . . Kills | -11 -10 -10 ------- Run | Yrd Mat Min Combat Hostiles Destroyed 15 | 1 13 1 Guns 10 | 1 8 1 AOE 5 | . 5 . Classes Destroyed 7 | 3 3 1 Worker 4 | 1 1 2 Builder 1 | . 1 . Tunneler 4 | 4 . . Recycler 1 | . 1 . Watcher 1 | . 1 . Grunt 14 | 1 13 . Assembled 1 | . . 1 Best Kill Streak 4 | 2 4 1 Combat Bots Only 3 | 1 3 1 Max Kills in Single Turn 2 | 1 2 1 Gunslinging . | . . . Exploded 1 | . 1 . Melee . | . . . Uniques/NPCs Destroyed . | . . . Combat | -11 -10 -10 -------- Run | Yrd Mat Min Hostile Shots Fired 101 | 1 81 19 Missed 34 | . 31 3 Damage Taken 1132 | 11 674 447 Core 251 | . 202 49 Absorbed by Shields . | . . . Redirected to Shielding 32 | . 26 6 Core Remaining (%) 100 | 100 . . Volleys Fired 120 | 22 70 28 Largest 2 | 2 2 2 Hottest 100 | 60 70 100 Shots Fired 206 | 44 133 29 Gun 187 | 44 125 18 Cannon 4 | . . 4 Launcher 10 | . 8 2 Special 5 | . . 5 Kinetic 109 | 22 65 22 Thermal 75 | 22 48 5 Explosive 10 | . 8 2 Electromagnetic 12 | . 12 . Robot Hit Streak 19 | 6 19 8 Robot Miss Streak 4 | 3 4 4 Penetration Max . | . . . Secondary Targets 1 | . 1 . Max Gunslinging Chain 1 | . 1 . Shots Hit Robots 113 | 24 72 17 Core Hits 57 | 9 39 9 Critical Kills . | . . . Critical Parts Destroyed . | . . . Critical Strikes . | . . . Melee Attacks 1 | . . 1 Impact . | . . . Slashing . | . . . Piercing . | . . . Sneak Attacks . | . . . Combat Hostiles . | . . . Follow-up Attacks . | . . . Damage Inflicted 1708 | 217 1148 343 Guns 985 | 217 662 106 Cannons 57 | . . 57 Explosions 666 | . 486 180 Melee . | . . . Ramming . | . . . Kinetic 521 | 89 269 163 Thermal 478 | 128 350 . Explosive 621 | . 441 180 Electromagnetic 88 | . 88 . Impact . | . . . Slashing . | . . . Piercing . | . . . Highest Corruption 14 | . . 14 Average Corruption 7 | . . 7 Corruption Purged . | . . . Corruption Blocked . | . . . Effects 2 | . . 2 Heat Flow Errors 1 | . . 1 Energy Discharges 1 | . . 1 Overload Shots . | . . . Overflow Damage 26 | . . 26 Projectiles . | . . . Explosions 26 | . . 26 Melee . | . . . Knockbacks . | . . . Impact . | . . . Kinetic . | . . . Secondary . | . . . Self-Inflicted Damage 109 | . 73 36 Shots 4 | . 3 1 Rammed . | . . . Targets Rammed . | . . . Kicked . | . . . Crushed . | . . . Highest Temperature 273 | 40 132 273 Average Temperature 35 | 17 40 34 Received Heat Transfer 345 | 6 339 . Siege Activations . | . . . Robots Corrupted . | . . . Combat Hostiles . | . . . Parts Fried . | . . . Impact Corruptions . | . . . Robots Melted . | . . . Combat Hostiles . | . . . Parts Melted 3 | . 3 . Heat Transferred 1000 | 300 700 . Parts Sabotaged . | . . . Parts Stolen . | . . . Parts Stripped . | . . . Power Chain Reactions 1 | . 1 . Alert | -11 -10 -10 ------- Run | Yrd Mat Min Peak Influence 264 | 35 264 99 Initial 76 | . 3 76 Average 50 | 6 97 75 Maximum Alert Level 1 | . 1 . Low Security (%) 97 | 100 94 100 Level 1 2 | . 5 . Level 2 . | . . . Level 3 . | . . . Level 4 . | . . . Level 5 . | . . . High Security . | . . . Max Security . | . . . Squads Dispatched 2 | . 2 . Investigation 1 | . 1 . Extermination . | . . . Reinforcement 1 | . 1 . Assault . | . . . Garrison . | . . . Intercept . | . . . Searches Triggered . | . . . Construction Impeded . | . . . Haulers Reinforced . | . . . Active Scanning Responses . | . . . Cargo Convoy Interrupts . | . . . Stealth | -11 -10 -10 --------- Run | Yrd Mat Min Distress Signals . | . . . Communications Jammed . | . . . Distress Signals . | . . . Times Spotted 27 | 1 24 2 Peak Tracking Total 4 | . 4 3 Tactical Retreats 5 | . 4 1 Traps | -11 -10 -10 ------- Run | Yrd Mat Min Traps Triggered 1 | . 1 . Indirectly . | . . . Trap Hack Attempts . | . . . Triggered . | . . . Disarmed 1 | . 1 . Reprogrammed . | . . . Reused . | . . . Traps Extracted . | . . . Installed . | . . . Triggered . | . . . Machines | -11 -10 -10 ---------- Run | Yrd Mat Min Machines Disabled 2 | . 2 . Max in Single Turn 1 | . 1 . Machines Repaired . | . . . Machines Dismantled . | . . . Machines Sabotaged . | . . . Overloaded Fab Kills . | . . . Hacking | -11 -10 -10 --------- Run | Yrd Mat Min Machines Accessed 6 | . 5 1 Terminals 5 | . 4 1 Fabricators . | . . . Repair Stations . | . . . Recycling Units 1 | . 1 . Scanalyzers . | . . . Garrison Access . | . . . Total Hacks 9 | . 7 2 Successful 4 | . 2 2 Failed 5 | . 5 . Catastrophic 2 | . 2 . Database Lockouts . | . . . Manual . | . . . Terminals 7 | . 5 2 Fabricators . | . . . Repair Stations . | . . . Recycling Units 2 | . 2 . Scanalyzers . | . . . Garrison Access . | . . . Terminal Hacks 3 | . 1 2 Record 1 | . . 1 Disarm Traps 1 | . 1 . Patrol Status 1 | . . 1 Fabricator Hacks . | . . . Repair Station Hacks . | . . . Recycling Unit Hacks 1 | . 1 . Retrieve Matter 1 | . 1 . Scanalyzer . | . . . Garrison Access Hacks . | . . . Unauthorized Hacks . | . . . Terminals . | . . . Fabricators . | . . . Repair Stations . | . . . Recycling Units . | . . . Scanalyzers . | . . . Garrison Access . | . . . Data Cores Recovered . | . . . Used . | . . . Hacking Detections 6 | . 5 1 Full Trace Events . | . . . Feedback Events . | . . . Feedback Blocked . | . . . Robot Schematics Acquired . | . . . Robots Built . | . . . Authchips . | . . . Time . | . . . Total Robot Build Rating . | . . . Part Schematics Acquired . | . . . Parts Built . | . . . Authchips . | . . . Time . | . . . Total Part Build Rating . | . . . Parts Repaired . | . . . Time . | . . . Parts Recycled . | . . . Recycled Matter . | . . . Retrieved Matter . | . . . Retrieved Components . | . . . Parts Scanalyzed . | . . . Part Schematics Acquired . | . . . Parts Damaged . | . . . Bothacking | -11 -10 -10 ------------ Run | Yrd Mat Min Used RIF Installer . | . . . Robots Hacked 1 | . . 1 Non-combat . | . . . Combat 1 | . . 1 Robot Hacks Applied 1 | . . 1 parse_system 1 | . . 1 Relay Couplers Released . | . . . Fabnet Peak Effective % . | . . . Robots Rewired . | . . . Allies Hacked . | . . . Hacks Repelled . | . . . Allies | -11 -10 -10 -------- Run | Yrd Mat Min Total Allies . | . . . Largest Group . | . . . Highest-Rated Group . | . . . Highest-Rated Ally . | . . . Total Orders . | . . . Ally Attacks . | . . . Total Damage . | . . . Kills . | . . . Allies Corrupted . | . . . Allies Melted . | . . . Intel | -11 -10 -10 ------- Run | Yrd Mat Min Robot Analysis Total . | . . . Derelict Logs Recovered 1 | . . 1 Drone Launches . | . . . Drone Recoveries . | . . . Exploration | -11 -10 -10 ------------- Run | Yrd Mat Min Turns Passed 3555 | 1735 1355 465 Spaces Moved 1676 | 468 897 311 Core 20 | 20 . . Treads . | . . . Legs 1656 | 448 897 311 Wheels . | . . . Hover . | . . . Flight . | . . . Fastest Speed 50 | 50 120 120 Average Speed 119 | 117 120 120 Slowest Speed 120 | 120 120 120 Overloaded Moves . | . . . Propulsion Burnouts . | . . . Robots Hopped . | . . . Cave-ins Triggered . | . . . Exploration Rate (%) 53 | 25 79 57 Regions Visited 2 Branch Regions 1 Pre-discovered Areas . | . . . Known Exits Taken 1 | . 1 . Unknown Exits Taken 1 | 1 . . Scrap Searched . | . . . Spaces Dug 5 | . 5 . Terrain Destroyed 72 | . 56 16 Melee . | . . . Projectile 3 | . . 3 AOE 69 | . 56 13 Terrain Rammed . | . . . Walls Destroyed . | . . . Machines Disabled . | . . . Actions | -11 -10 -10 --------- Run | Yrd Mat Min Total 3033 | 1613 1055 365 Wait 1178 | 1109 55 14 Move 1674 | 467 896 311 Hop . | . . . Pick Up 13 | 5 8 . Fast Attach 12 | 6 4 2 Attach 7 | . 3 4 Detach 1 | . 1 . Swap 12 | 1 8 3 Drop 15 | 3 10 2 Fire 120 | 22 70 28 Melee 1 | . . 1 Ram . | . . . Kick . | . . . Crush . | . . . Escape Stasis . | . . . Rewire . | . . . Trap . | . . . Miscellaneous . | . . . Route ------- -11/Scrapyard -10/Materials (discovered 4 exits: [*Mat x2] / *Min / [*Sub]) -10/Mines (discovered 1 exit: [*Mat]) History --------- Turn | Location | Event 2 | -11/Scrapyard | Met Revision 17 80 | -11/Scrapyard | Discovered new exit (range 8) 1736 | -11/Scrapyard | Entered Materials 1737 | -10/Materials | Build established: Mutant 1902 | -10/Materials | Discovered new exit (range 16) 2219 | -10/Materials | Core integrity fell below 50% 2270 | -10/Materials | Discovered new exit (range 10) 2858 | -10/Materials | Core integrity fell below 20% 2905 | -10/Materials | Discovered new exit (range 15) 2985 | -10/Materials | Discovered new exit (range 11) 3042 | -10/Materials | Identified exit to Mines 3091 | -10/Materials | Entered Mines 3142 | -10/Mines | A weapon hastily lodged in a ceiling crevice suddenly fell to the ground 3172 | -10/Mines | Learned Materials security intel 3363 | -10/Mines | Discovered new exit (range 3) 3482 | -10/Mines | Excavation squad dispatched 3482 | -10/Mines | A large section of the Mines collapsed 3541 | -10/Mines | System corruption reached 10% 3556 | -10/Mines | Destroyed by as-92209 with Assembled Blade Last Messages --------------- Reading system data... 03528_ The unstable cave ceiling collapses. 03528_ K-01 Serf collects debris. 03530_ K-01 Serf destroyed. 03530_ Datajack destroyed. 03530_ Destroyed Datajack. 03530_ Grenade Launcher destroyed. 03530_ Destroyed Grenade Launcher. 03531_ Core Shielding destroyed. The Lrg. Storage Unit has expanded your inventory capacity. Items held in inventory do not count towards total mass and therefore cannot slow you down. 03539_ System corrupted: Energy discharge (-80). 03540_ Ion Engine destroyed. 03540_ System corrupted by crushing effect (+5). [Achievement: System Compromised] 03552_ Aluminum Leg destroyed. 03552_ System corrupted by crushing effect (+4). 03552_ as-18811 destroyed. 03555_ System corrupted: Heat flow error (+289). 03556_ Lgt. Nuclear Core destroyed. Map ----- +----------------------------------------------------+ | ### #??????????????????????????????????????????? | | #??????????????????????????????????????????? | | ### #??????????????????????????????????????????? | | #???????????????????????????????????????????????? | | ????????????????????????????????????????????????? | | ????????????????????????????????????????????????? | | ????????????????????????????????????????????????? | | ????????????????????????????????????????????????? | | ????????????????????????????????????????????????? | | ????????????????????????????????????????????????? | | ?????????? ????????????????????????????????????? | | ????????? #??????????????????????????????????? | | ????????? #?????????????????????????????????? | | ???????? ?????????????????????????????????? | | ???????? ?????????????????????????????????? | | ???????# ??????????????????????????????????? | | ????### ???????????????????????????????????? | | ??### ????????????????????????????????????? | | ?## ?????????????????????????????????????? | | ?# ???????????????????????????????????????? | | ## #????????????????????????????????????????? | | # #########?????????????????????????????????? | | #?????????????????????????????????? | | #?????????????????????????????????? | | ####### #???#####?###?????????????????????? | | ##?????# #??## #####@#?????????????????????? | | ##????### #??#### a###????????????????????? | | ##????## #??##" # ###??????????????????? | | #?????# #???#; ### #??????????????????? | | #????## """ #???## "# #?????????????????? | | ##???## """ #????########? #?????????????????? | | ##????# """ ###### #??????????????????????????? | | #?????# #??????????????????????????? | | #?????##### #######??????????????????????????? | | ??????????## ##????????????????????????????????? | | ???????????####?????????????????????????????????? | | ????????????????????????????????????????????????? | | ????????????????????????????????????????????????? | | ????????????????????????????????????????????????? | | ????????????????????????????????????????????????? | | | | | | | | | | | | | | | | | | | | | +----------------------------------------------------+ Best States ------------- Heat Dissipation 25 Energy Generation 10 Energy Capacity 250 Matter Stores 300 Matter Capacity 300 Sight Range 16 Terrain Scan Range 16 Terrain Scan Density 10 Core Shielding 20 Evasion (%) 55 Item Schematics ----------------- None Robot Schematics ------------------ None Fabricated ------------ Nothing Alien Tech Used ----------------- None Achievements -------------- Crack Shot Hey, That's Mine! Let's See Who's Tougher System Compromised Uninvited Guest Challenges ------------ None Game ------ Seed StormPotentialKit Manual? 0 Play Time 00:26:14 Cumulative 2.2 hours Start 2025.03.14 @ 20:24:27 End 2025.03.14 @ 20:48:51 Sessions 1 Manual Loads 0 Difficulty Rogue Special Mode None Game No. 4 Rogue 4 Adventurer 0 Explorer 0 Win Type - Total 0 Types 0/0/0/0/0/0/0/0/0 Lore% 0 Gallery% 3 Achievement% 3 Wizard Run 0 Options --------- Layout 2 ASCII 0 Keyboard 1 Movement Numpad Keybinds 0 Fullscreen 1 Font 32/SmallcapsGlow Map View 90x49 Zoom Use 0% Tactical HUD 1 Map Filters NONE Filters NONE Steam 1 RUN: 0b398ef1-8838-42b6-b137-9d603a4440c4